bitfinex-derivatives/quotes_ETHF0:USTF0_20210107
["timestamp","ask_amount","ask_price","bid_price","bid_amount"]
[1610049440255,4.00959,1236.0,1235.1,0.22164433]
[1610049440754,4.00959,1235.2,1235.1,0.22164433]
[1610049440954,4.66367182,1236.6,1235.1,0.22164433]
[1610049442156,1.18909618,1236.3,1234.8,0.22250925]
[1610049442861,4.00959,1235.3,1234.8,0.22250925]
[1610049443660,4.00959,1235.3,1234.5,4.00959]
[1610049444460,4.00959,1235.3,1234.3,53.53502236]
[1610049444861,4.00959,1235.0,1234.3,57.54461236]
[1610049446462,4.00959,1235.0,1234.3,57.32109]
[1610049446761,4.00959,1234.8,1234.3,57.32109]
[1610049447766,2.77527308,1235.6,1234.3,57.32109]
[1610049448768,4.00959,1235.1,1234.8,4.00959]
[1610049450172,1.18941017,1235.5,1234.3,53.3115]
[1610049450872,4.00959,1235.3,1235.1,4.00959]
[1610049451671,1.18941017,1235.5,1235.1,4.00959]
[1610049452774,1.18941017,1235.5,1235.4,4.00959]
[1610049453777,5.19833453,1236.2,1235.4,4.00959]
[1610049454776,5.19833453,1236.2,1235.6,4.00959]
[1610049454976,4.00959,1236.2,1235.6,4.00959]
[1610049455177,4.00959,1236.2,1234.8,55.98947796]
[1610049456077,4.00959,1236.2,1234.9,0.22332312]
[1610049456677,34.00959,1236.2,1234.9,0.22332312]
[1610049456876,4.00959,1235.0,1234.9,0.22332312]
[1610049457178,30.0,1236.2,1234.9,0.22332312]
[1610049457380,1.18868446,1236.4,1234.9,0.22332312]
[1610049457580,1.18884766,1236.3,1234.8,0.22297996]
[1610049458578,1.18902213,1236.2,1234.6,0.22277271]
[1610049458780,4.00959,1234.7,1234.6,0.22277271]
[1610049459980,4.00959,1234.7,1234.3,0.22311428]
[1610049460180,1.18907923,1235.8,1234.3,0.22311428]
[1610049460781,4.00959,1234.9,1234.4,4.00959]
[1610049462782,4.00959,1234.7,1234.4,4.00959]
[1610049463687,1.18936844,1235.6,1234.4,4.00959]
[1610049463887,1.18936844,1235.6,1234.4,13.42759]
[1610049464889,5.19895844,1235.6,1235.1,4.00959]
[1610049465088,4.00959,1235.6,1235.1,4.00959]
[1610049465688,4.00959,1235.6,1234.7,61.5299]
[1610049466791,4.00959,1234.8,1234.7,61.5299]
[1610049470292,1.18915242,1235.8,1234.7,61.5299]
[1610049470892,1.18915242,1235.8,1235.2,4.00959]
[1610049471092,1.18915242,1235.8,1234.7,61.5299]
[1610049471393,1.1890079,1235.9,1234.7,61.5299]
[1610049471993,1.1890079,1235.9,1234.3,0.22149727]
[1610049472193,49.68,1235.8,1234.3,0.22149727]
[1610049472393,30.0,1235.7,1234.3,0.22149727]
[1610049472593,30.0,1235.7,1234.4,0.22265741]
[1610049472993,4.00959,1234.5,1234.4,0.22265741]
[1610049473997,4.00959,1234.5,1233.7,0.22360213]
[1610049474196,34.00959,1234.5,1233.7,0.22360213]
[1610049474597,34.00959,1234.5,1233.6,0.22337193]
[1610049475001,4.00959,1233.7,1233.6,0.22337193]
[1610049477304,4.00959,1233.7,1233.2,0.22399909]
[1610049478504,4.00959,1233.7,1233.0,0.22427862]
[1610049478904,4.00959,1233.1,1233.0,0.22427862]
[1610049479103,2.0383,1234.1,1233.0,0.22427862]
[1610049479506,1.19048267,1234.5,1233.4,51.7359]
[1610049479907,1.1899945,1234.4,1232.9,0.22474529]
[1610049480908,4.00959,1234.0,1233.8,4.00959]
[1610049481108,4.00959,1234.0,1233.7,0.22386026]
[1610049482910,4.00959,1233.8,1233.7,0.22386026]
[1610049483613,4.00959,1233.8,1233.4,0.22467157]
[1610049484914,4.00959,1233.5,1233.4,0.22467157]
[1610049485117,4.00959,1233.5,1233.2,0.22507132]
[1610049486913,4.00959,1233.3,1233.2,0.22507132]
[1610049487515,4.00959,1233.3,1233.0,0.22527069]
[1610049489014,30.0,1234.3,1233.1,4.00959]
[1610049489614,30.0,1234.3,1233.0,0.22527069]
[1610049489813,32.1084,1234.4,1233.0,0.22527069]
[1610049490026,32.1084,1234.4,1233.0,7.70597069]
[1610049490222,30.0,1234.4,1233.0,7.70597069]
[1610049490916,4.00959,1233.5,1233.0,11.71556069]
[1610049492120,53.63441624,1234.5,1233.0,11.71556069]
[1610049492319,83.63441624,1234.5,1233.0,11.71556069]
[1610049492522,82.444,1234.5,1233.3,0.22232309]
[1610049492919,82.444,1234.5,1233.9,4.00959]
[1610049492920,4.00959,1234.2,1233.9,4.00959]
[1610049493420,3.475,1234.5,1233.9,10.59269]
[1610049494921,3.475,1234.5,1234.4,4.00959]
[1610049495124,10.92159,1234.7,1234.4,4.00959]
[1610049495725,4.00959,1234.7,1234.4,4.00959]
[1610049496330,4.00959,1234.7,1234.0,0.2215662]
[1610049496825,4.00959,1234.7,1234.1,54.7536]
[1610049497025,3.475,1235.4,1234.1,54.7536]
[1610049497026,3.475,1235.4,1234.6,4.00959]
[1610049497225,3.475,1235.4,1234.6,11.69369]
[1610049497427,1.18939338,1235.7,1234.6,11.69369]
[1610049498325,1.1890302,1235.8,1234.6,11.69369]
[1610049498927,1.1890302,1235.8,1235.1,4.00959]
[1610049499730,31.18886659,1236.1,1235.1,4.00959]
[1610049500329,1.18886659,1236.1,1235.1,4.00959]
[1610049500728,31.18858217,1236.4,1234.8,0.22077891]
[1610049500928,4.00959,1234.9,1234.8,0.22077891]
[1610049501730,30.0,1236.3,1234.8,0.22077891]
[1610049501930,30.0,1236.3,1234.9,0.22098796]
[1610049502732,30.0,1236.2,1234.9,0.22098796]
[1610049502931,4.00959,1235.1,1234.8,4.00959]
[1610049503331,4.00959,1235.1,1234.7,0.22219339]
[1610049503932,30.0,1236.1,1234.7,0.22219339]
[1610049504132,31.18878296,1236.1,1234.6,0.2222537]
[1610049505032,4.00959,1234.8,1234.6,0.2222537]
[1610049505235,4.00959,1234.8,1234.7,0.22222369]
[1610049506432,30.0,1235.9,1234.7,0.22222369]
[1610049506634,30.0,1235.9,1234.5,55.10416325]
[1610049507033,4.00959,1235.1,1234.5,55.10416325]
[1610049507232,4.00959,1235.1,1234.5,54.8815]
[1610049509033,31.18912405,1235.8,1234.6,4.00959]
[1610049509734,30.0,1235.8,1234.6,4.00959]
[1610049510335,1.18886524,1236.0,1234.6,4.00959]
[1610049510533,1.58515366,1236.1,1234.6,4.00959]
[1610049510534,1.18869625,1236.1,1234.6,4.23332688]
[1610049510935,1.18869625,1236.1,1235.4,4.00959]
[1610049511136,1.18869625,1236.1,1234.8,61.891]
[1610049511536,30.0,1236.2,1234.9,0.22344124]
[1610049511736,1.18844814,1236.4,1234.9,0.22344124]
[1610049512940,30.0,1236.5,1235.1,0.22325631]
[1610049513139,4.00959,1235.6,1235.2,4.00959]
[1610049513538,4.00959,1235.6,1235.1,0.22325631]
[1610049513941,4.00959,1235.6,1235.2,0.22345057]
[1610049514942,4.00959,1235.3,1235.2,0.22345057]
[1610049515143,4.00959,1235.3,1235.1,0.44690115]
[1610049515144,34.00959,1235.3,1235.1,0.22362894]
[1610049515943,34.00959,1235.3,1234.8,0.67088681]
[1610049515944,34.00959,1235.3,1234.8,0.22395066]
[1610049516945,4.00959,1234.9,1234.6,0.22448377]
[1610049517347,34.00959,1234.9,1234.6,0.22448377]
[1610049518050,34.00959,1234.9,1234.3,0.22482937]
[1610049518348,4.00959,1234.9,1234.3,0.22482937]
[1610049518749,34.00959,1234.9,1234.3,0.22482937]
[1610049518949,4.00959,1234.4,1234.3,0.22482937]
[1610049519550,4.00959,1234.4,1234.2,0.44965874]
[1610049521952,4.00959,1234.4,1234.2,0.22534001]
[1610049522753,4.00959,1234.4,1234.0,0.22603727]
[1610049522952,34.00959,1234.4,1234.0,0.22603727]
[1610049523153,4.00959,1234.1,1234.0,0.22603727]
[1610049524556,4.00959,1234.1,1233.8,0.4509312]
[1610049524957,30.0,1235.3,1233.8,0.4509312]
[1610049525155,30.0,1235.3,1234.0,4.00959]
[1610049525556,30.0,1235.2,1234.0,4.00959]
[1610049526457,30.0,1235.1,1233.8,63.10282482]
[1610049527262,30.0,1235.1,1233.8,4.23471482]
[1610049527263,4.00959,1234.0,1233.8,4.23471482]
[1610049527660,4.00959,1234.0,1233.8,0.22512482]
[1610049528161,4.00959,1234.0,1233.9,0.45199273]
[1610049528763,34.00959,1234.0,1233.9,0.45199273]
[1610049529663,4.00959,1234.0,1233.9,0.45199273]
[1610049529861,4.00959,1234.0,1233.8,0.67798909]
[1610049529862,4.00959,1234.0,1233.8,0.22708812]
[1610049531064,4.00959,1234.0,1233.9,4.00959]
[1610049531263,4.00959,1234.0,1233.8,0.22708812]
[1610049531864,4.00959,1234.0,1233.7,0.22731635]
[1610049533064,4.00959,1234.0,1233.7,4.23690635]
[1610049533263,31.18941638,1235.1,1233.7,4.00959]
[1610049533465,30.0,1235.1,1233.9,0.22743307]
[1610049533665,30.0,1235.0,1233.9,0.22743307]
[1610049534664,30.0,1234.9,1233.9,0.22743307]
[1610049535164,4.00959,1234.0,1233.9,0.22743307]
[1610049536371,34.00959,1234.0,1233.6,0.2276548]
[1610049537069,4.00959,1233.7,1233.6,0.2276548]
[1610049537569,4.00959,1233.7,1233.4,0.22693205]
[1610049538168,34.00959,1233.7,1233.4,0.22693205]
[1610049539073,4.00959,1233.5,1233.4,0.22693205]
[1610049540071,4.00959,1233.5,1233.3,0.22657604]
[1610049541273,30.0,1234.4,1233.4,47.461]
[1610049541474,1.19004178,1234.7,1233.4,47.461]
[1610049542876,3.47603029,1235.1,1233.6,0.22598187]
[1610049542877,1.1891927,1235.0,1233.6,0.22598187]
[1610049543077,1.1891927,1235.0,1234.9,4.00959]
[1610049544077,1.1891927,1235.0,1234.0,54.1435]
[1610049544278,5.59518027,1235.1,1234.4,0.22468011]
[1610049544279,34.00959,1235.1,1234.4,0.22468011]
[1610049545178,4.00959,1234.5,1234.4,0.22468011]
[1610049545379,34.00959,1234.5,1234.4,0.44941091]
[1610049545978,34.00959,1234.5,1234.0,1.12352727]
[1610049545979,34.00959,1234.5,1234.1,0.22517524]
[1610049547180,4.00959,1234.2,1233.9,0.2258741]
[1610049547379,30.0,1234.1,1233.9,0.2258741]
[1610049547981,30.0,1234.1,1233.8,0.4517482]
[1610049548981,30.0,1234.1,1233.5,0.4517049]
[1610049549180,4.00959,1233.6,1233.5,0.4517049]
[1610049549383,34.00959,1233.6,1233.5,0.4517049]
[1610049550181,34.00959,1233.6,1233.2,0.90340979]
[1610049550381,34.00959,1233.6,1233.0,0.45324629]
[1610049551182,4.00959,1233.1,1232.7,0.45499935]
[1610049551381,30.0,1233.0,1232.7,0.45499935]
[1610049551782,30.0,1233.0,1232.5,0.45535037]
[1610049552882,4.00959,1233.1,1232.5,0.45535037]
[1610049553082,4.00959,1232.6,1232.5,0.45535037]
[1610049553283,4.00959,1232.6,1232.4,0.68302556]
[1610049554688,4.00959,1232.6,1232.4,0.45578441]
[1610049555691,4.00959,1232.6,1232.5,0.45480686]
[1610049555891,30.0,1233.4,1232.5,0.45480686]
[1610049556292,30.0,1233.7,1232.5,0.45480686]
[1610049557295,4.00959,1233.0,1232.7,4.00959]
[1610049557496,30.0,1233.6,1232.5,0.45480686]
[1610049557696,30.0,1233.6,1232.5,3.18890686]
[1610049558297,30.0,1233.6,1232.9,0.22724931]
[1610049558497,30.0,1233.5,1232.9,0.22724931]
[1610049559297,4.00959,1233.0,1232.9,0.22724931]
[1610049561199,57.60191682,1234.3,1232.9,0.22724931]
[1610049561398,30.0,1234.2,1232.9,0.22724931]
[1610049561998,30.0,1234.2,1232.8,0.45459727]
[1610049562399,30.0,1234.1,1232.8,0.45459727]
[1610049563209,4.00959,1232.9,1232.8,0.68200881]
[1610049564202,90.6495,1234.1,1232.8,0.68200881]
[1610049564502,90.6495,1234.1,1232.8,2.78540881]
[1610049564904,90.6495,1234.1,1232.8,2.1034]
[1610049565302,4.00959,1232.9,1232.8,2.1034]
[1610049565503,34.00959,1232.9,1232.8,2.1034]
[1610049565904,4.00959,1232.9,1232.8,2.1034]
[1610049566304,4.00959,1232.9,1232.8,2.55984134]
[1610049567108,34.00959,1232.9,1232.8,2.55984134]
[1610049567508,34.00959,1232.9,1232.8,2.1034]
[1610049567907,4.00959,1232.9,1232.8,2.1034]
[1610049569508,4.00959,1232.9,1232.5,2.96338838]
[1610049569909,4.00959,1232.9,1232.6,0.2289972]
[1610049571209,1.19068304,1233.9,1232.6,0.2289972]
[1610049571210,4.00959,1232.7,1232.6,0.2289972]
[1610049571409,4.00959,1232.7,1232.5,3.64666971]
[1610049573111,4.00959,1232.7,1232.6,0.45580585]
[1610049574212,1.19064186,1234.1,1232.6,0.45580585]
[1610049574714,1.19053053,1233.9,1232.5,2.96271098]
[1610049574912,31.19053053,1233.9,1232.5,2.96271098]
[1610049575314,4.00959,1232.6,1232.5,2.96271098]
[1610049577015,4.00959,1232.6,1232.5,3.1917737]
[1610049579815,4.00959,1232.6,1232.5,2.96355651]
[1610049582416,4.00959,1232.6,1232.5,2.7341]
[1610049582615,4.00959,1232.6,1232.4,0.23009493]
[1610049583619,4.00959,1232.6,1232.5,0.22971505]
[1610049584319,34.00959,1232.6,1232.5,0.22971505]
[1610049586820,34.00959,1232.6,1232.1,0.23034922]
[1610049587220,4.00959,1232.2,1232.1,0.23034922]
[1610049588322,4.00959,1232.2,1232.0,0.23062644]
[1610049589320,4.00959,1232.2,1232.1,0.23013498]
[1610049589519,4.00959,1232.2,1232.1,2.30923498]
[1610049590924,4.00959,1232.2,1232.1,2.0791]
[1610049592424,4.00959,1232.2,1232.1,2.53795154]
[1610049595935,34.00959,1232.2,1232.1,2.53795154]
[1610049596536,34.00959,1232.2,1232.1,2.0791]
[1610049596937,34.00959,1232.2,1232.0,0.22915356]
[1610049597738,34.00959,1232.2,1231.7,2.2343]
[1610049597938,34.00959,1232.2,1231.5,0.23007875]
[1610049599439,4.00959,1231.6,1231.5,0.23007875]
[1610049600242,34.00959,1231.6,1231.5,0.23007875]
[1610049600844,34.00959,1231.6,1231.5,0.46117229]
[1610049601043,4.00959,1231.6,1231.5,0.46117229]
[1610049601449,1.19161722,1232.9,1231.5,3.65827229]
[1610049602042,2.83781722,1232.9,1231.5,3.65827229]
[1610049602243,30.0,1232.8,1231.5,3.65827229]
[1610049602444,2.83781722,1232.9,1231.5,3.65827229]
[1610049602847,1.19161722,1232.9,1231.5,3.65827229]
[1610049603344,4.00959,1232.7,1232.0,4.00959]
[1610049603546,4.00959,1232.7,1231.5,3.65827229]
[1610049603946,4.00959,1232.7,1232.0,0.23025152]
[1610049604144,4.00959,1232.7,1232.0,2.97185152]
[1610049605346,4.00959,1232.7,1232.4,0.22990277]
[1610049605545,4.00959,1232.7,1232.4,2.61070277]
[1610049606348,30.0,1233.9,1232.5,0.45940788]
[1610049607351,30.0,1233.9,1232.8,0.22884037]
[1610049607551,30.0,1233.8,1232.8,0.22884037]
[1610049608855,30.0,1233.8,1232.7,0.22899164]
[1610049609356,4.00959,1233.0,1232.7,0.22899164]
[1610049610357,4.00959,1233.0,1232.6,0.22856974]
[1610049611856,30.0,1233.9,1232.6,0.22856974]
[1610049612056,31.19063552,1233.9,1232.6,0.22856974]
[1610049613058,2.0006,1234.0,1232.8,0.22844441]
[1610049613258,1.19042355,1234.1,1232.8,0.22844441]
[1610049613458,4.00959,1233.2,1232.8,4.23803441]
[1610049613657,1.19042355,1234.1,1232.8,4.23803441]
[1610049614263,1.18977549,1234.3,1232.9,0.22810928]
[1610049614860,2.80887549,1234.3,1232.9,0.22810928]
[1610049615261,1.18977549,1234.3,1232.9,0.22810928]
[1610049615560,1.18977549,1234.3,1234.2,4.00959]
[1610049615763,4.00959,1234.9,1234.2,4.00959]
[1610049616361,1.58578549,1235.0,1234.2,4.00959]
[1610049616662,1.58539129,1235.5,1234.2,4.00959]
[1610049617262,1.58477015,1235.9,1234.3,0.22309443]
[1610049617462,1.58477015,1235.9,1235.4,4.00959]
[1610049618470,1.58431781,1236.3,1235.4,4.00959]
[1610049619366,1.58431781,1236.3,1236.2,4.00959]
[1610049619565,4.00959,1236.6,1236.2,4.00959]
[1610049620364,1.58381165,1236.7,1236.2,4.00959]
[1610049621066,1.58358217,1237.0,1236.2,4.00959]
[1610049621469,4.00959,1237.0,1235.8,0.22575133]
[1610049622866,30.0,1236.9,1235.8,0.22575133]
[1610049623265,32.0714,1236.9,1235.8,0.22575133]
[1610049623465,4.00959,1235.9,1235.8,0.22575133]
[1610049623667,4.00959,1235.9,1235.6,0.22506556]
[1610049625066,34.00959,1235.9,1234.9,0.22570266]
[1610049625266,36.55089,1235.9,1234.9,0.22570266]
[1610049625467,4.00959,1235.0,1234.9,0.22570266]
[1610049625671,34.00959,1235.0,1234.9,0.22570266]
[1610049626067,34.00959,1235.0,1234.6,0.90281065]
[1610049626268,34.00959,1235.0,1233.4,2.70843194]
[1610049626269,36.00089,1235.0,1234.3,0.4526868]
[1610049626668,6.00089,1235.0,1234.3,0.4526868]
[1610049626867,30.0,1234.9,1234.3,0.4526868]
[1610049627567,4.00959,1234.4,1234.3,0.4526868]
[1610049627972,4.00959,1234.4,1234.0,0.90537359]
[1610049628168,4.00959,1234.4,1233.6,0.45424587]
[1610049628775,1.9913,1235.0,1233.6,0.45424587]
[1610049630176,1.18951652,1234.8,1233.3,0.45499279]
[1610049631273,2.81741652,1234.8,1233.3,0.45499279]
[1610049631472,1.18951652,1234.8,1234.0,4.00959]
[1610049631675,3.97382753,1235.0,1234.0,4.00959]
[1610049631676,1.9913,1235.0,1234.0,4.00959]
[1610049632074,1.18937955,1235.1,1234.0,4.00959]
[1610049632875,1.18882446,1235.5,1234.0,4.46546567]
[1610049633575,4.00959,1234.9,1234.0,0.45587567]
[1610049633773,4.00959,1234.9,1234.4,0.45509093]
[1610049633978,1.6003,1234.9,1234.4,0.45509093]
[1610049634174,1.18872427,1235.9,1234.4,0.45509093]
[1610049635377,1.18827013,1236.0,1234.5,0.45646087]
[1610049635578,4.00959,1234.9,1234.5,0.45646087]
[1610049636477,4.00959,1234.9,1234.8,0.45628414]
[1610049636677,30.0,1236.2,1234.8,0.45628414]
[1610049637079,30.0,1236.1,1234.8,0.45628414]
[1610049637478,30.0,1236.1,1234.8,0.22823464]
[1610049637479,4.00959,1234.9,1234.8,0.22823464]
[1610049638178,4.00959,1234.9,1234.7,0.45646929]
[1610049638578,5.60819,1234.9,1234.7,0.45646929]
[1610049638978,35.60819,1234.9,1234.7,0.45646929]
[1610049639180,35.60819,1234.9,1234.5,0.91437065]
[1610049639582,4.00959,1234.6,1234.5,0.91437065]
[1610049639781,34.00959,1234.6,1234.3,0.91560737]
[1610049640382,34.00959,1234.6,1234.0,0.22988009]
[1610049640982,35.62749,1234.6,1234.0,0.22988009]
[1610049641187,34.00959,1234.6,1234.0,0.22988009]
[1610049641589,4.00959,1234.1,1234.0,0.22988009]
[1610049641782,34.00959,1234.1,1234.0,0.22988009]
[1610049642684,35.63839,1234.1,1234.0,0.22988009]
[1610049642884,35.63839,1234.1,1233.9,0.23008221]
[1610049643084,35.63839,1234.1,1233.6,0.91995426]
[1610049643085,34.00959,1234.1,1233.6,0.91995426]
[1610049643484,4.00959,1233.7,1233.6,0.91995426]
[1610049643685,34.00959,1233.7,1233.6,0.91995426]
[1610049644084,34.00959,1233.7,1233.5,0.23082305]
[1610049644689,4.00959,1233.7,1233.5,0.23082305]
[1610049644889,30.0,1233.6,1233.1,0.92329222]
[1610049645490,4.00959,1233.2,1233.1,0.92329222]
[1610049645691,4.00959,1233.2,1233.1,0.23152568]
[1610049646093,34.00959,1233.2,1233.1,0.23152568]
[1610049646689,4.00959,1233.2,1233.1,0.23152568]
[1610049647690,30.0,1234.1,1233.1,0.23152568]
[1610049648891,31.6243,1234.1,1232.9,0.92350313]
[1610049649494,4.00959,1233.0,1232.9,0.92350313]
[1610049650693,34.00959,1233.0,1232.9,0.92350313]
[1610049650894,34.00959,1233.0,1232.9,1.15390806]
[1610049651494,4.00959,1233.0,1232.9,1.15390806]
[1610049652599,34.00959,1233.0,1232.9,1.15390806]
[1610049652798,34.00959,1233.0,1232.9,0.46365066]
[1610049653799,34.00959,1233.0,1232.9,0.69708739]
[1610049654398,4.00959,1233.0,1232.9,0.69708739]
[1610049654599,4.00959,1233.0,1232.9,0.23292054]
[1610049654798,34.00959,1233.0,1232.9,0.23292054]
[1610049655899,34.00959,1233.0,1232.9,0.23291277]
[1610049656801,4.00959,1233.0,1232.9,0.23291277]
[1610049657102,5.61889,1233.0,1232.9,0.23291277]
[1610049657303,35.61889,1233.0,1232.9,0.23291277]
[1610049657703,34.00959,1233.0,1232.9,0.23291277]
[1610049658603,35.65279,1233.0,1232.9,0.23291277]
[1610049659205,34.00959,1233.0,1232.9,0.23291277]
[1610049659705,34.00959,1233.0,1232.7,0.93188728]
[1610049661106,34.00959,1233.0,1232.2,0.23351378]
[1610049661506,4.00959,1232.3,1232.2,0.23351378]
[1610049661706,34.00959,1232.3,1232.2,0.23351378]
[1610049662610,4.00959,1232.3,1232.2,0.23351378]
[1610049663010,1.6065,1232.6,1232.2,0.23351378]
[1610049663210,1.6065,1232.6,1232.2,2.82771378]
[1610049663412,30.0,1233.0,1232.2,2.82771378]
[1610049663612,4.00959,1233.1,1232.9,4.00959]
[1610049663814,4.00959,1233.1,1232.2,2.82771378]
[1610049664013,5.63659,1233.1,1232.2,2.82771378]
[1610049664214,4.00959,1233.1,1232.2,2.82771378]
[1610049664414,31.19103961,1233.4,1232.2,2.82771378]
[1610049664613,1.19103961,1233.4,1232.2,2.82771378]
[1610049664814,1.19016044,1233.7,1232.5,0.23276208]
[1610049665014,1.19016044,1233.7,1232.5,3.34326208]
[1610049665619,1.19016044,1233.7,1233.5,4.00959]
[1610049665819,4.00959,1233.8,1233.5,4.00959]
[1610049667220,34.00959,1233.8,1233.3,0.23275145]
[1610049667420,34.00959,1233.8,1233.5,0.23248506]
[1610049667620,4.00959,1233.6,1233.5,0.23248506]
[1610049667821,34.00959,1233.6,1233.5,0.23248506]
[1610049669021,34.00959,1233.6,1233.1,0.92994024]
[1610049669623,4.00959,1233.2,1233.1,0.92994024]
[1610049669820,34.00959,1233.2,1233.1,0.92994024]
[1610049670221,34.00959,1233.2,1233.1,0.69917603]
[1610049670423,35.61479,1233.2,1233.1,0.69917603]
[1610049672523,35.61479,1233.2,1232.8,0.46700988]
[1610049673524,4.00959,1232.9,1232.8,0.46700988]
[1610049673727,34.00959,1232.9,1232.8,0.46700988]
[1610049675027,1.19037776,1234.1,1232.8,0.46700988]
[1610049675226,1.19037776,1234.1,1232.7,0.70051482]
[1610049675428,1.6107,1234.1,1232.7,0.70051482]
[1610049675626,1.6107,1234.1,1233.2,4.00959]
[1610049675826,1.6107,1234.1,1232.7,0.70051482]
[1610049676326,1.6107,1234.1,1233.0,0.4656478]
[1610049676526,1.18996418,1234.4,1233.0,0.4656478]
[1610049677326,1.18996418,1234.4,1233.2,65.9445]
[1610049677525,2.82846418,1234.4,1233.2,65.9445]
[1610049677730,4.43046418,1234.4,1234.3,4.00959]
[1610049677929,1.18996418,1234.4,1234.3,4.00959]
[1610049678130,1.18902965,1234.8,1234.3,4.00959]
[1610049679528,1.18848774,1235.8,1234.5,0.23052214]
[1610049679727,1.18848774,1235.8,1234.7,4.00959]
[1610049680128,30.0,1235.6,1234.7,4.00959]
[1610049681129,30.0,1235.5,1234.7,4.00959]
[1610049681730,30.0,1235.5,1235.4,4.00959]
[1610049681931,1.18848774,1235.8,1235.4,4.00959]
[1610049682132,4.00959,1235.9,1235.4,4.00959]
[1610049682331,30.0,1236.3,1235.4,4.00959]
[1610049683332,30.0,1236.3,1234.7,0.91918135]
[1610049683532,30.0,1236.2,1234.7,0.91918135]
[1610049683732,4.00959,1235.9,1234.7,4.92877135]
[1610049683934,30.0,1235.8,1235.4,0.22898419]
[1610049685634,4.00959,1235.5,1235.4,0.22898419]
[1610049685835,34.00959,1235.5,1235.1,0.22919312]
[1610049687134,34.00959,1235.5,1235.0,0.45838625]
[1610049687335,34.00959,1235.5,1234.6,0.45833935]
[1610049687536,98.16429,1235.5,1234.6,0.45833935]
[1610049687735,4.00959,1234.7,1234.6,0.45833935]
[1610049687938,34.00959,1234.7,1234.6,0.45833935]
[1610049688738,34.00959,1234.7,1234.1,0.4588365]
[1610049689740,4.00959,1234.2,1234.1,0.4588365]
[1610049689940,35.63499,1234.2,1233.8,0.45895333]
[1610049690541,34.00959,1234.2,1233.8,0.45895333]
[1610049691241,34.00959,1234.2,1233.7,0.4592246]
[1610049691440,35.64359,1234.2,1233.7,0.4592246]
[1610049691640,4.00959,1233.8,1233.7,0.4592246]
[1610049691841,34.00959,1233.8,1233.7,0.4592246]
[1610049692843,35.63749,1233.8,1233.7,0.4592246]
[1610049693647,35.63749,1233.8,1233.6,0.45925494]
[1610049695245,34.00959,1233.8,1233.6,0.45925494]
[1610049695445,34.00959,1233.8,1233.5,0.45954163]
[1610049695645,4.00959,1233.6,1233.5,0.45954163]
[1610049696251,4.00959,1233.6,1233.3,0.4609924]
[1610049696848,30.0,1234.1,1233.3,0.4609924]
[1610049697048,30.0,1234.6,1233.3,2.4068924]
[1610049697647,4.00959,1234.0,1233.3,2.4068924]
[1610049698049,30.0,1234.6,1233.5,0.23029303]
[1610049698651,31.6386,1234.6,1233.5,0.23029303]
[1610049698851,1.18942265,1234.8,1233.5,0.23029303]
[1610049700652,35.99284006,1235.0,1233.5,0.23029303]
[1610049701655,4.00959,1234.6,1234.3,4.00959]
[1610049702655,30.0,1234.9,1234.3,4.00959]
[1610049703056,30.0,1234.8,1234.3,4.00959]
[1610049703658,30.0,1234.8,1234.7,4.00959]
[1610049703857,30.0,1234.8,1234.1,0.22792607]
[1610049704057,30.0,1234.7,1234.1,0.22792607]
[1610049704759,30.0,1234.7,1234.2,0.22774939]
[1610049705160,30.0,1234.6,1234.2,0.22774939]
[1610049705560,30.0,1234.6,1234.3,0.22766233]
[1610049706162,30.0,1234.5,1234.3,0.22766233]
[1610049706562,30.0,1234.5,1234.2,0.22774107]
[1610049707064,30.0,1234.4,1234.2,0.22774107]
[1610049707664,30.0,1234.4,1234.3,4.00959]
[1610049708065,30.0,1234.9,1234.3,4.00959]
[1610049709466,30.0,1234.9,1234.3,4.23847085]
[1610049709666,4.00959,1234.8,1234.3,0.22888085]
[1610049709865,34.00959,1234.8,1234.3,0.22888085]
[1610049710467,35.62809,1234.8,1234.3,0.22888085]
[1610049710667,35.62809,1234.8,1234.4,0.228832]
[1610049710867,34.00959,1234.8,1234.4,0.228832]
[1610049711669,34.00959,1234.8,1234.7,4.00959]
[1610049713369,34.00959,1234.8,1234.2,0.22818052]
[1610049713670,30.0,1234.8,1234.5,4.00959]
[1610049713873,30.0,1234.7,1234.5,4.00959]
[1610049714872,30.0,1234.6,1234.5,4.00959]
[1610049715274,30.0,1234.6,1234.2,0.22818052]
[1610049715873,34.00959,1234.5,1234.2,0.22818052]
[1610049716273,34.00959,1234.5,1234.1,0.22756812]
[1610049718474,54.9361,1234.4,1234.1,0.22756812]
[1610049718674,30.0,1234.3,1234.1,0.22756812]
[1610049719874,4.00959,1234.2,1234.0,0.45513625]
[1610049720074,34.00959,1234.2,1234.0,0.45513625]
[1610049720874,35.61799,1234.2,1234.0,0.45513625]
[1610049721676,35.61799,1234.2,1233.8,0.68755393]
[1610049721877,4.00959,1233.9,1233.3,2.40618987]
[1610049722077,49.7334,1233.6,1233.3,2.40618987]
[1610049722277,30.0,1233.5,1233.3,2.40618987]
[1610049723177,30.0,1233.8,1233.3,2.40618987]
[1610049723377,4.00959,1233.9,1233.0,0.46149058]
[1610049723378,30.0,1233.4,1233.0,0.46149058]
[1610049723777,4.00959,1233.1,1233.0,0.46149058]
[1610049723977,34.00959,1233.1,1233.0,0.46149058]
[1610049725277,34.00959,1233.1,1232.6,0.4607955]
[1610049725879,34.00959,1233.1,1233.0,4.00959]
[1610049726078,34.00959,1233.1,1232.6,0.4607955]
[1610049726783,30.0,1233.0,1232.6,0.4607955]
[1610049727582,1.19039964,1234.0,1232.6,0.4607955]
[1610049727782,34.00959,1233.7,1233.4,4.00959]
[1610049727982,1.6227,1233.7,1233.4,4.00959]
[1610049728184,1.6227,1233.7,1233.4,65.05079]
[1610049728584,30.0,1234.1,1233.4,65.05079]
[1610049728784,1.18973222,1234.2,1233.4,65.05079]
[1610049729487,2.79503222,1234.2,1233.4,65.05079]
[1610049729686,1.18973222,1234.2,1233.4,65.05079]
[1610049729888,30.0,1234.3,1234.1,4.00959]
[1610049730087,1.18908877,1235.0,1234.1,4.00959]
[1610049730287,30.0,1234.9,1234.1,4.00959]